bitfinex/quotes_SOLUSD_20260118
["timestamp","ask_amount","ask_price","bid_price","bid_amount"]
[1768732565866,4.31165183,142.27,142.24,4.10650412]
[1768732567272,11.34063896,142.27,142.24,4.10650412]
[1768732567476,11.28063897,142.27,142.24,4.10650412]
[1768732567678,11.22063898,142.27,142.24,4.10650412]
[1768732575280,7.02898713,142.27,142.24,4.10650412]
[1768732575471,11.34063896,142.27,142.24,4.10650412]
[1768732581178,19.71165183,142.28,142.25,4.10650412]
[1768732581794,15.4,142.28,142.25,4.10650412]
[1768732581966,4.31165183,142.27,142.25,4.10650412]
[1768732582167,4.25165184,142.27,142.25,4.10650412]
[1768732583193,4.25165184,142.27,142.24,4.33435199]
[1768732585195,4.05409941,142.29,142.25,4.33435199]
[1768732585379,4.05409941,142.3,142.25,4.33435199]
[1768732585786,4.05409941,142.31,142.25,4.33435199]
[1768732587293,11.08114575,142.31,142.27,4.33435199]
[1768732591288,11.08114575,142.31,142.27,7.02887058]
[1768732591596,11.08114575,142.31,142.28,4.33435199]
[1768732592378,4.05409941,142.32,142.29,4.33435199]
[1768732592582,11.08002507,142.33,142.29,4.33435199]
[1768732592785,26.48002507,142.33,142.29,4.33435199]
[1768732593287,4.05409941,142.32,142.29,4.33435199]
[1768732593483,11.08071644,142.32,142.29,4.33435199]
[1768732594593,4.05409941,142.31,142.28,4.33435199]
[1768732595694,7.02740688,142.3,142.28,4.33435199]
[1768732596393,11.22114515,142.3,142.27,4.06764152]
[1768732599800,4.19373827,142.31,142.27,4.06764152]
[1768732600902,4.19373827,142.31,142.28,4.06764152]
[1768732606406,7.02740688,142.3,142.28,4.06764152]
[1768732610702,11.22114515,142.3,142.27,4.06764152]
[1768732611809,4.19373827,142.29,142.26,4.06764152]
[1768732612807,4.15859456,142.28,142.24,4.32751493]
[1768732614403,11.18748329,142.27,142.24,4.32751493]
[1768732614912,11.12748325,142.27,142.24,4.32751493]
[1768732615711,11.12748325,142.27,142.22,7.03114333]
[1768732615712,6.96888869,142.27,142.22,7.03114333]
[1768732615887,4.15859456,142.26,142.21,4.32751493]
[1768732616507,4.15859456,142.24,142.21,4.32751493]
[1768732618092,7.03086549,142.23,142.21,4.32751493]
[1768732619882,4.15859456,142.25,142.21,4.32751493]
[1768732620288,15.4,142.26,142.22,4.32751493]
[1768732620289,4.15859456,142.26,142.22,4.32751493]
[1768732621502,11.18836038,142.26,142.22,4.32751493]
[1768732622707,7.02976582,142.26,142.23,4.32751493]
[1768732622887,4.15859456,142.28,142.23,4.32751493]
[1768732624592,11.18698927,142.28,142.23,4.32751493]
[1768732624910,4.15859456,142.27,142.23,4.32751493]
[1768732625907,7.02938282,142.26,142.23,4.32751493]
[1768732647325,11.10192517,142.26,142.23,4.32751493]
[1768732647532,6.19874959,142.25,142.22,4.11381901]
[1768732647906,2.12620724,142.24,142.22,4.11381901]
[1768732650821,13.22888153,142.25,142.22,4.11381901]
[1768732652223,11.10267429,142.25,142.22,4.11381901]
[1768732653024,7.03013194,142.25,142.22,4.11381901]
[1768732656122,11.42785818,142.25,142.22,4.11381901]
[1768732657034,11.42785818,142.25,142.22,11.14515599]
[1768732658433,4.39772624,142.25,142.22,11.14515599]
[1768732661339,13.55347961,142.26,142.23,4.41912316]
[1768732666143,11.42727237,142.26,142.23,4.41912316]
[1768732666322,13.55347961,142.26,142.23,4.41912316]
[1768732669949,11.42727237,142.26,142.23,4.41912316]
[1768732670151,13.55347961,142.26,142.23,4.41912316]
[1768732670837,95.07167785,142.29,142.24,4.41912316]
[1768732670838,6.52393348,142.27,142.24,4.41912316]
[1768732672941,4.30472689,142.26,142.24,11.44944602]
[1768732674840,4.30472689,142.26,142.24,4.41912316]
[1768732675043,6.43093413,142.26,142.24,4.41912316]
[1768732675235,6.43093413,142.26,142.24,4.38912317]
[1768732677347,4.30472689,142.26,142.24,4.38912317]
[1768732677538,6.43093413,142.26,142.24,4.38912317]
[1768732678351,4.30472689,142.26,142.24,4.38912317]
[1768732679152,4.30472689,142.26,142.23,4.14479536]
[1768732681758,4.30472689,142.26,142.23,11.17565404]
[1768732686562,9.15516185,142.27,142.24,4.14479536]
[1768732686563,7.02895461,142.27,142.24,4.14479536]
[1768732688664,11.33325002,142.28,142.25,4.14479536]
[1768732688836,13.45945726,142.28,142.25,4.14479536]
[1768732692064,11.33325002,142.28,142.25,4.14479536]
[1768732692268,13.45902613,142.29,142.26,4.14479536]
[1768732693066,13.45902613,142.29,142.26,4.11479539]
[1768732694279,9.15429924,142.29,142.26,4.11479539]
[1768732694663,13.45902613,142.29,142.26,4.11479539]
[1768732695660,11.33213377,142.3,142.26,4.11479539]
[1768732695871,2.12620724,142.29,142.26,4.11479539]
[1768732696968,11.33213377,142.3,142.26,4.11479539]
[1768732697148,9.15437602,142.29,142.26,4.11479539]
[1768732697351,13.45850843,142.3,142.27,4.14479536]
[1768732697563,13.45850843,142.3,142.27,4.11479537]
[1768732698463,9.15378154,142.3,142.27,4.11479537]
[1768732698761,13.45850843,142.3,142.27,4.11479537]
[1768732699371,13.45741641,142.3,142.27,4.11479537]
[1768732700172,13.45741641,142.3,142.27,4.08479541]
[1768732700766,2.12511522,142.29,142.27,4.08479541]
[1768732717779,9.15302768,142.29,142.27,4.08479541]
[1768732720289,9.15302768,142.29,142.25,7.02972282]
[1768732720290,4.33903595,142.28,142.25,11.48790984]
[1768732720490,6.46415117,142.28,142.25,11.48790984]
[1768732721286,6.46415117,142.28,142.26,4.45818702]
[1768732722086,2.12511522,142.28,142.26,4.45818702]
[1768732723091,13.49257233,142.28,142.25,4.45818702]
[1768732723266,2.12511522,142.27,142.25,4.45818702]
[1768732726791,13.49257233,142.28,142.25,4.45818702]
[1768732726967,2.12511522,142.27,142.25,4.45818702]
[1768732728068,13.49257233,142.28,142.25,4.45818702]
[1768732729088,6.46415117,142.27,142.24,11.48845274]
[1768732729292,24.59661034,142.3,142.23,4.45818702]
[1768732729293,6.46415117,142.26,142.23,4.45818702]
[1768732730474,2.12511522,142.25,142.23,4.45818702]
[1768732733696,6.46415117,142.26,142.23,11.48902327]
[1768732733891,7.02858289,142.28,142.24,4.37296566]
[1768732734079,21.86771646,142.29,142.25,4.37296566]
[1768732734486,19.74260124,142.29,142.25,4.37296566]
[1768732734677,15.4,142.29,142.26,4.37296566]
[1768732736600,22.42791221,142.29,142.26,4.37296566]
[1768732738709,15.4,142.29,142.27,4.37296566]
[1768732739783,7.02752801,142.3,142.27,4.37296566]
[1768732740401,6.46771646,142.31,142.28,4.37296566]
[1768732740402,9.15221315,142.31,142.28,4.37296566]
[1768732740893,9.15221315,142.31,142.28,4.34296566]
[1768732744211,13.49481439,142.31,142.28,4.34296566]
[1768732750834,11.36969917,142.31,142.28,4.34296566]
[1768732751008,9.15221315,142.31,142.28,4.34296566]
[1768732751903,9.15164818,142.32,142.29,4.37296566]
[1768732752218,7.02653296,142.32,142.29,4.37296566]
[1768732754119,7.02653296,142.32,142.29,4.34296567]
[1768732758118,7.02653296,142.32,142.29,3.65714482]
[1768732758299,7.02653296,142.32,142.29,2.28550237]
[1768732758619,9.15164818,142.32,142.29,0.63953011]
[1768732758817,9.15164818,142.32,142.28,7.02835564]
[1768732759002,6.46771646,142.31,142.26,9.15413459]
[1768732760830,6.46771646,142.31,142.27,4.37296566]
[1768732761325,13.49453092,142.31,142.27,4.37296566]
[1768732761710,13.49453092,142.31,142.27,11.40174069]
[1768732762011,13.49453092,142.31,142.28,4.37296566]
[1768732764325,11.36987235,142.31,142.28,4.37296566]
[1768732771216,4.39535135,142.3,142.27,4.48620138]
[1768732778345,4.39535135,142.3,142.27,11.51494895]
[1768732783042,4.39535135,142.3,142.27,7.02874757]
[1768732783346,4.39535135,142.3,142.28,4.49009933]
[1768732801568,4.39535135,142.3,142.28,11.5184709]
[1768732801751,4.47177712,142.31,142.28,11.5184709]
[1768732801931,7.02627861,142.33,142.28,11.5184709]
[1768732801932,4.47177712,142.33,142.3,4.41556185]
[1768732802129,4.47177712,142.33,142.3,4.38556185]
[1768732803465,4.47177712,142.33,142.3,13.53740511]
[1768732804346,4.47177712,142.33,142.3,11.41274654]
[1768732806663,4.47177712,142.33,142.3,11.44274654]
[1768732807038,4.47177712,142.33,142.3,7.02718469]
[1768732807255,4.47177712,142.33,142.3,11.44274654]
[1768732808765,11.4977597,142.33,142.3,4.41556185]
[1768732808958,4.47177712,142.32,142.3,4.41556185]
[1768732809860,4.47177712,142.32,142.29,11.44324702]
[1768732810058,4.47177712,142.31,142.28,11.44374631]
[1768732810244,4.47177712,142.3,142.28,11.44389451]
[1768732811243,6.59643569,142.31,142.28,11.44389451]
[1768732817862,4.47177712,142.31,142.28,11.44389451]
[1768732819571,6.59643569,142.31,142.28,11.44389451]
[1768732820846,4.47177712,142.3,142.28,11.44389451]
[1768732823972,4.05579219,142.31,142.28,11.44389451]
[1768732824180,6.18049851,142.31,142.28,11.44389451]
[1768732825485,4.05579219,142.3,142.28,11.44389451]
[1768732838278,6.18049851,142.3,142.26,21.98483163]
[1768732838464,6.18049851,142.3,142.27,4.41182661]
[1768732839482,6.18049851,142.3,142.27,11.44053409]
[1768732841486,4.05579219,142.3,142.27,11.44053409]
[1768732850289,2.12470632,142.33,142.28,6.53653293]
[1768732850474,13.23367242,142.34,142.3,4.41182661]
[1768732852288,13.23367242,142.34,142.3,11.43906813]
[1768732854081,13.23367242,142.34,142.3,11.07815132]
[1768732855497,13.23367242,142.34,142.3,7.02724152]
[1768732855675,13.23367242,142.34,142.31,4.0509098]
[1768732855876,6.20814043,142.34,142.31,11.07770998]
[1768732858197,6.20814043,142.34,142.31,4.0509098]
[1768732858198,13.23366991,142.34,142.31,4.0509098]
[1768732861478,4.29665239,142.33,142.31,4.0509098]
[1768732862295,6.42135871,142.33,142.31,4.0509098]
[1768732869702,4.29665239,142.33,142.31,4.0509098]
[1768732882308,13.42538085,142.34,142.31,4.0509098]
[1768732883410,13.42441423,142.34,142.31,4.0509098]
[1768732883920,11.30067453,142.34,142.31,4.0509098]
[1768732887041,13.42441423,142.34,142.31,4.0509098]
[1768732892948,0.1,142.36,142.32,2.1237397]
[1768732893137,0.1,142.36,142.33,4.1947024]
[1768732894531,0.1,142.36,142.34,4.1947024]
[1768732898942,0.1,142.36,142.35,4.49805583]
[1768732900739,0.1,142.37,142.35,4.49805583]
[1768732902146,0.1,142.37,142.36,4.49805583]
[1768732905755,0.1,142.37,142.36,4.46805583]
[1768732907347,0.1,142.37,142.34,7.02533377]
[1768732907751,0.1,142.37,142.35,4.49805583]
[1768732914180,0.1,142.37,142.36,4.34095461]
[1768732920600,0.1,142.38,142.36,4.34095461]
[1768732921697,8.09587578,142.4,142.37,4.34095461]
[1768732922002,9.14622984,142.4,142.37,4.34095461]
[1768732923697,13.58453376,142.4,142.37,4.34095461]
[1768732925194,9.14622984,142.4,142.37,4.34095461]
[1768732927292,13.58453376,142.4,142.37,4.34095461]
[1768732929807,4.43830392,142.38,142.35,4.34095461]
[1768732930403,6.56204362,142.39,142.35,4.34095461]
[1768732931095,6.56204362,142.39,142.36,4.34095461]
[1768732931096,9.14719784,142.39,142.36,4.34095461]
[1768732931297,7.02345814,142.39,142.36,4.34095461]
[1768732931908,7.02265698,142.4,142.38,4.34095461]
[1768732937006,1.7878,142.41,142.38,4.34095461]
[1768732938500,1.7878,142.41,142.39,4.34095461]
[1768732941628,0.1,142.42,142.4,4.34095461]
[1768732944427,0.1,142.43,142.41,4.49466386]
[1768732944734,0.1,142.44,142.41,4.49466386]
[1768732945811,4.46662806,142.44,142.41,4.49466386]
[1768732946020,0.1,142.44,142.41,4.49466386]
[1768732946219,11.48714263,142.44,142.41,4.49466386]
[1768732946407,13.60747446,142.44,142.41,4.49466386]
[1768732946726,4.36662806,142.43,142.4,11.51708084]
[1768732948626,4.36662806,142.43,142.41,4.49466386]
[1768732950734,4.36662806,142.43,142.41,11.51664022]
[1768732951038,4.46662806,142.44,142.41,13.63697205]
[1768732951523,4.46662806,142.44,142.41,11.51664022]
[1768732956632,4.46662806,142.44,142.42,4.08997285]
[1768732956831,0.1,142.44,142.42,4.08997285]
[1768732957217,4.19737888,142.44,142.42,4.08997285]
[1768732957933,4.19737888,142.44,142.41,7.02197636]
[1768732958114,4.19737888,142.44,142.41,11.11194921]
[1768732974848,0.1,142.44,142.42,4.13961456]
[1768732979454,0.1,142.44,142.42,11.16106458]
[1768732980273,0.1,142.44,142.42,4.13961456]
[1768732980480,4.24383683,142.44,142.41,11.16148122]
[1768732981756,4.14383683,142.43,142.4,7.02238597]
[1768732985175,4.14383683,142.43,142.4,11.16200053]
[1768732993985,4.24383683,142.44,142.41,11.16135542]
[1768733018615,4.24383683,142.44,142.4,4.08353689]
[1768733020116,4.24383683,142.44,142.41,7.02197879]
[1768733027619,4.24383683,142.44,142.39,28.66305497]
[1768733028015,4.3378254,142.43,142.39,28.66305497]
[1768733028318,4.28090503,142.43,142.4,4.08353689]
[1768733029625,4.28090503,142.43,142.41,7.02197879]
[1768733031022,4.22090504,142.43,142.41,7.02197879]
[1768733039499,4.16090505,142.43,142.41,7.02197879]
[1768733044745,4.10090506,142.43,142.41,7.02197879]
[1768733046735,4.44413659,142.44,142.41,11.37082761]
[1768733050850,4.44413659,142.44,142.4,11.37132073]
[1768733052746,4.44413659,142.44,142.41,11.37044569]
[1768733062369,0.1,142.44,142.42,4.01455684]
[1768733065165,0.1,142.44,142.42,11.03573713]
[1768733072275,4.41107097,142.44,142.42,11.03573713]
[1768733072573,4.41107097,142.44,142.42,7.02118029]
[1768733074178,4.41107097,142.44,142.41,11.03635318]
[1768733074679,6.53146097,142.44,142.41,11.03635318]
[1768733075075,4.41107097,142.44,142.41,11.03635318]
[1768733085971,4.07585664,142.43,142.4,11.42622544]
[1768733087282,11.19638715,142.44,142.4,7.0223103]
[1768733087484,0.1,142.44,142.42,4.40391514]
[1768733093792,4.42834861,142.44,142.41,11.43856774]
[1768733096198,4.42834861,142.44,142.41,7.02183525]
[1768733097199,4.42834861,142.44,142.41,4.41673249]
[1768733100707,4.42834861,142.44,142.41,11.43849188]
[1768733102002,4.32834861,142.43,142.4,11.4392044]
[1768733102206,4.32834861,142.43,142.4,7.02247191]
[1768733104909,4.32834861,142.43,142.4,4.41673249]
[1768733106709,4.32834861,142.43,142.4,11.43882673]
[1768733116005,4.42834861,142.44,142.41,4.41673249]
[1768733116206,0.1,142.44,142.41,4.41673249]
[1768733117518,0.1,142.44,142.42,7.02148574]
[1768733120817,0.1,142.44,142.42,4.41673249]
[1768733121928,4.42834861,142.44,142.42,11.43816492]
[1768733122330,0.1,142.44,142.42,11.43816492]
[1768733132340,4.37083003,142.44,142.42,7.02143243]
[1768733136655,0.1,142.44,142.42,7.02143243]
[1768733136843,0.1,142.44,142.43,4.27912396]
[1768733137044,0.1,142.44,142.42,11.30055639]
[1768733139261,4.15577421,142.44,142.4,6.39930768]
[1768733139555,4.05577421,142.43,142.4,6.39930768]
[1768733139732,4.05577421,142.43,142.4,11.30121976]
[1768733140361,4.05577421,142.43,142.41,4.27912396]
[1768733141143,24.57225592,142.44,142.41,4.27912396]
[1768733145465,24.57225592,142.44,142.41,11.30110138]
[1768733153083,17.55175366,142.44,142.41,11.30110138]
[1768733154550,17.55175366,142.44,142.41,13.4212851]
[1768733156879,17.55175366,142.44,142.41,11.30110138]
[1768733157176,17.55175366,142.44,142.41,13.4212851]
[1768733164081,17.55175366,142.44,142.41,11.30110138]
[1768733165184,17.55175366,142.44,142.41,13.4212851]
[1768733168289,17.55175366,142.44,142.41,11.30110138]
[1768733170185,17.55175366,142.44,142.41,28.85604836]
[1768733170486,0.1,142.44,142.43,4.34360272]
[1768733170686,0.04385565,142.44,142.43,4.34360272]
[1768733170987,0.04385565,142.44,142.42,6.46378644]
[1768733171683,0.04385565,142.44,142.42,13.48498512]
[1768733174090,0.04385565,142.44,142.42,9.1413824]
[1768733174289,0.04385565,142.44,142.43,4.34360272]
[1768733174677,0.04385565,142.44,142.43,13.4847792]
[1768733174878,0.04385565,142.44,142.43,11.36459548]
[1768733180592,0.04385565,142.44,142.43,7.02099276]
[1768733180887,0.04385565,142.44,142.42,13.48507296]
[1768733184776,0.1,142.45,142.43,6.12520377]
[1768733185285,0.04,142.45,142.43,6.12520377]
[1768733185974,20.01393607,142.46,142.43,6.12520377]
[1768733186500,8.88178044,142.46,142.45,4.00502005]
[1768733186672,4.21261587,142.48,142.45,6.12520377]
[1768733187492,11.23119488,142.48,142.45,6.12520377]
[1768733187681,0.1,142.48,142.47,4.00502005]
[1768733187884,21.65692013,142.5,142.47,6.12520377]
[1768733188193,4.11261587,142.5,142.47,6.12520377]
[1768733188590,11.1302051,142.5,142.47,6.12520377]
[1768733189783,11.1302051,142.5,142.47,4.00502005]
[1768733191800,11.1302051,142.5,142.46,9.13937965]
[1768733191801,4.11261587,142.49,142.46,13.1443997]
[1768733193502,4.11261587,142.49,142.46,13.14283942]
[1768733201111,4.11261587,142.49,142.46,9.13781937]
[1768733201610,4.11261587,142.49,142.46,13.46934793]
[1768733208216,3.99519725,142.48,142.45,7.0198351]
[1768733210100,3.99519725,142.48,142.45,11.35136366]
[1768733212716,3.99519725,142.48,142.45,7.0198351]
[1768733220321,3.99519725,142.48,142.45,11.02735446]
[1768733226128,3.99519725,142.48,142.45,13.1459779]
[1768733231226,7.01721611,142.51,142.47,6.1261428]
[1768733231848,7.01721611,142.51,142.47,13.14495815]
[1768733232211,7.01721611,142.51,142.47,11.02633471]
[1768733232415,7.01721611,142.51,142.47,13.14495815]
[1768733233347,4.32712797,142.5,142.47,13.14495815]
[1768733235544,4.32712797,142.5,142.47,11.02633471]
[1768733236024,4.32712797,142.5,142.47,7.01881535]
[1768733239950,4.32712797,142.5,142.47,11.02633471]
[1768733242051,4.32712797,142.5,142.47,7.01881535]
[1768733246251,4.0128109,142.49,142.46,11.02685896]
[1768733246450,4.0128109,142.48,142.46,7.0193396]
[1768733246654,2.11862344,142.49,142.46,11.03312839]
[1768733247761,9.13619428,142.5,142.46,11.03312839]
[1768733248456,2.11862344,142.48,142.43,42.62809011]
[1768733248658,4.0128109,142.46,142.43,4.01378879]
[1768733249437,2.11862344,142.47,142.44,7.02049865]
[1768733249438,6.13143434,142.47,142.44,7.02049865]
[1768733249747,6.13143434,142.47,142.44,11.03428744]
[1768733249953,4.0128109,142.47,142.44,11.03428744]
[1768733250162,6.13143434,142.47,142.44,11.03428744]
[1768733250860,4.0128109,142.47,142.44,11.03428744]
[1768733251059,11.03184596,142.47,142.44,11.03428744]
[1768733251240,4.0128109,142.46,142.44,7.02049865]
[1768733251872,4.0128109,142.46,142.43,11.03460543]
[1768733254062,4.0128109,142.46,142.44,4.01378879]
[1768733254277,6.13265271,142.47,142.44,4.01378879]
[1768733254477,2.11984181,142.47,142.43,7.02081664]
[1768733254674,4.0128109,142.46,142.43,11.03460543]
[1768733255879,4.0128109,142.46,142.44,3.94606714]
[1768733257462,13.12197448,142.47,142.44,3.94606714]
[1768733260176,3.98293804,142.46,142.44,3.94606714]
[1768733266698,3.98293804,142.46,142.44,10.96653328]
[1768733280233,3.98293804,142.46,142.44,3.94606714]
[1768733290043,3.98293804,142.46,142.44,10.96654897]
[1768733296942,10.9281226,142.47,142.44,10.96654897]
[1768733297319,3.90908452,142.47,142.44,10.96654897]
[1768733311247,3.94202842,142.46,142.42,19.07378903]
[1768733311451,3.94202842,142.45,142.42,19.07378903]
[1768733311648,3.88202843,142.45,142.42,19.07378903]
[1768733311953,3.88202843,142.45,142.42,3.69378903]
[1768733313758,6.00187024,142.45,142.42,3.69378903]
[1768733315461,6.00254817,142.45,142.42,3.69378903]
[1768733317550,3.88202843,142.45,142.42,3.69378903]
[1768733317749,6.00254817,142.45,142.42,3.69378903]
[1768733318072,3.88202843,142.45,142.42,3.69378903]
[1768733320671,9.14063039,142.45,142.41,10.75137295]
[1768733320962,2.12051974,142.43,142.41,3.72967278]
[1768733322059,9.14159982,142.43,142.39,3.72967278]
[1768733322656,11.08800223,142.43,142.39,3.72967278]
[1768733323167,11.08800223,142.43,142.39,7.02290258]
[1768733323374,11.08800223,142.43,142.4,3.72967278]
[1768733324676,8.96748249,142.43,142.4,3.72967278]
[1768733324860,11.08800223,142.43,142.4,3.72967278]
[1768733327172,2.23814908,142.42,142.4,3.72967278]
[1768733332075,4.35866882,142.42,142.4,3.72967278]
[1768733334277,2.23814908,142.42,142.4,3.72967278]
[1768733339479,9.25966882,142.42,142.4,3.72967278]
[1768733339660,13.46318007,142.42,142.39,3.76325596]
[1768733339854,2.12051974,142.41,142.39,3.76325596]
[1768733340385,4.2124804,142.41,142.38,3.76325596]
[1768733340565,11.23467827,142.41,142.38,3.76325596]
[1768733340764,2.12051974,142.4,142.38,3.76325596]
[1768733341176,2.12051974,142.4,142.37,3.76325596]
[1768733343172,2.23814908,142.39,142.37,3.76325596]
[1768733344077,2.12051974,142.4,142.37,3.76325596]
[1768733344464,2.12051974,142.4,142.38,3.76325596]
[1768733345686,9.11415853,142.41,142.38,3.76325596]
[1768733345867,2.12051974,142.4,142.38,3.76325596]
[1768733348092,11.29512719,142.4,142.36,10.78761165]
[1768733348468,11.29512719,142.4,142.37,3.76325596]
[1768733369011,9.17460745,142.4,142.37,3.76325596]
[1768733369186,11.29512719,142.4,142.37,10.78718019]
[1768733377319,11.29659621,142.4,142.37,10.78718019]
[1768733377825,11.29659621,142.4,142.37,3.76325596]
[1768733382224,11.29659621,142.4,142.37,10.78719347]
[1768733388430,9.17460745,142.4,142.37,10.78719347]
[1768733388726,11.29659621,142.4,142.37,10.78719347]
[1768733393128,2.45496518,142.37,142.35,0.843]
[1768733393331,2.12198876,142.36,142.33,4.12000532]
[1768733393535,23.20198735,142.39,142.35,4.12000532]
[1768733393712,2.12198876,142.39,142.35,4.12000532]
[1768733394635,9.14501922,142.39,142.35,11.14494385]
[1768733395030,2.12198876,142.38,142.35,11.14494385]
[1768733395333,4.53088274,142.38,142.35,11.14494385]
[1768733397629,2.12198876,142.37,142.33,7.02556096]
[1768733397826,2.12198876,142.36,142.34,4.12000532]
[1768733399021,11.56393577,142.37,142.34,4.12000532]
[1768733403333,2.12198876,142.36,142.34,4.12000532]
[1768733405251,9.14661819,142.36,142.34,4.12000532]
[1768733413859,2.12198876,142.36,142.34,4.12000532]
[1768733414032,11.56401234,142.37,142.34,4.12000532]
[1768733415856,18.58985624,142.37,142.34,4.12000532]
[1768733416056,16.171941,142.37,142.34,4.12000532]
[1768733416234,11.63795485,142.38,142.35,4.12000532]
[1768733416436,18.66379875,142.38,142.35,4.12000532]
[1768733417659,16.54180999,142.38,142.35,4.12000532]
[1768733417840,18.66379875,142.38,142.35,4.12000532]
[1768733422565,11.63795485,142.38,142.35,4.12000532]
[1768733424266,4.64614989,142.37,142.34,4.28475826]
[1768733425466,11.67041842,142.37,142.34,4.28475826]
[1768733426464,9.14625729,142.37,142.34,4.28475826]
[1768733427943,2.12198876,142.36,142.34,4.28475826]
[1768733430569,11.68352598,142.37,142.34,4.28475826]
[1768733430867,4.66869819,142.36,142.33,4.28475826]
[1768733437490,2.12308931,142.36,142.33,4.28475826]
[1768733443521,4.7097765,142.36,142.33,4.28475826]
[1768733445102,2.58668719,142.36,142.33,4.28475826]
[1768733445413,7.02426853,142.37,142.34,4.27202486]
[1768733447214,7.02366297,142.38,142.34,11.29739487]
[1768733447397,32.936739,142.4,142.35,4.27202486]
[1768733447398,19.67982831,142.4,142.35,4.27202486]
[1768733447595,2.12308931,142.39,142.35,4.27202486]
[1768733447803,4.72006048,142.39,142.35,4.27202486]
[1768733448595,11.74319439,142.39,142.35,4.27202486]
[1768733451523,2.12308931,142.38,142.35,4.27202486]
[1768733453224,9.62010508,142.39,142.35,4.27202486]
[1768733453428,2.12308931,142.38,142.35,4.27202486]
[1768733457128,9.14661361,142.38,142.35,4.27202486]
[1768733458212,2.12308931,142.37,142.35,4.27202486]
[1768733458411,2.12308931,142.36,142.35,4.27202486]
[1768733458626,9.64644437,142.38,142.35,4.27202486]
[1768733458826,2.12308931,142.36,142.35,4.27202486]
[1768733459430,9.64644437,142.38,142.35,4.27202486]
[1768733459603,2.12308931,142.37,142.35,4.27202486]
[1768733460332,9.64644437,142.38,142.35,4.27202486]
[1768733460525,2.12308931,142.37,142.35,4.27202486]
[1768733460718,9.14661361,142.38,142.35,4.27202486]
[1768733461024,11.77605682,142.38,142.35,4.27202486]
[1768733462429,2.12308931,142.37,142.35,4.27202486]
[1768733464536,9.65296751,142.38,142.35,4.27202486]
[1768733464832,2.12308931,142.37,142.35,4.27202486]
[1768733466133,9.14661361,142.38,142.35,4.27202486]
[1768733466832,22.33028521,142.4,142.36,4.2289675]
[1768733467135,7.02260942,142.4,142.36,4.2289675]
[1768733468440,9.14569873,142.4,142.37,4.2289675]
[1768733468846,7.02260942,142.4,142.37,4.2289675]
[1768733469015,9.14569873,142.4,142.37,4.2289675]
[1768733472138,7.02260942,142.4,142.37,4.2289675]
[1768733472341,9.14569873,142.4,142.37,4.2289675]
[1768733474156,7.02260942,142.4,142.37,4.2289675]
[1768733474369,9.14611665,142.39,142.37,4.2289675]
[1768733477059,7.02302734,142.39,142.37,4.2289675]
[1768733477359,9.14611665,142.39,142.37,4.2289675]
[1768733484141,9.14611665,142.39,142.35,7.02474779]
[1768733484348,2.12308931,142.37,142.35,4.13403113]
[1768733485352,9.14720751,142.37,142.35,4.13403113]
[1768733492265,7.0241182,142.37,142.35,4.13403113]
[1768733492472,9.14720751,142.37,142.35,4.13403113]
[1768733492650,7.0241182,142.37,142.35,4.13403113]
[1768733492859,9.14720751,142.37,142.35,4.13403113]
[1768733494379,7.0241182,142.37,142.35,4.13403113]
[1768733494590,9.14720751,142.37,142.35,4.13403113]
[1768733497489,7.0241182,142.37,142.35,4.13403113]
[1768733498388,9.14720751,142.37,142.35,4.13403113]
[1768733498595,2.12308931,142.37,142.35,4.13403113]
[1768733499296,11.82057733,142.38,142.35,4.13403113]
[1768733500904,9.14634388,142.38,142.35,4.13403113]
[1768733503696,9.7237185,142.39,142.35,4.13403113]
[1768733503899,2.12269406,142.38,142.35,4.13403113]
[1768733505708,2.12269406,142.38,142.35,11.15890585]
[1768733506714,9.7237185,142.39,142.35,11.15890585]
[1768733506999,2.12269406,142.38,142.35,11.15890585]
[1768733508306,2.12269406,142.38,142.36,4.2039636]
[1768733509809,11.84641256,142.39,142.36,4.2039636]
[1768733514503,2.12269406,142.38,142.36,4.2039636]
[1768733516089,9.1458597,142.39,142.36,4.2039636]
[1768733520403,7.02128831,142.43,142.39,4.051746]
[1768733520606,7.02488001,142.46,142.41,4.051746]
[1768733520791,2.12269406,142.45,142.41,4.051746]
[1768733521597,2.72508134,142.46,142.41,4.051746]
[1768733521796,2.72508134,142.46,142.42,4.051746]
[1768733522012,11.86782306,142.47,142.43,4.051746]
[1768733523204,9.745129,142.47,142.43,4.051746]
[1768733523410,2.72812449,142.46,142.43,4.051746]
[1768733523708,4.85081855,142.46,142.43,4.051746]
[1768733524102,4.85081855,142.45,142.42,4.051746]
[1768733524306,9.74860527,142.45,142.42,4.051746]
[1768733524487,11.87129933,142.45,142.42,4.051746]
[1768733526488,9.74860527,142.45,142.42,4.051746]
[1768733527401,11.87129933,142.45,142.42,4.051746]
[1768733530210,9.75346569,142.46,142.43,4.051746]
[1768733531095,7.01956235,142.46,142.43,4.051746]
[1768733533419,11.87979569,142.46,142.43,4.051746]
[1768733535022,9.75710163,142.46,142.43,4.051746]
[1768733535209,11.87979569,142.46,142.43,4.051746]
[1768733538428,9.75710163,142.46,142.43,4.051746]
[1768733538723,11.87979569,142.46,142.43,4.051746]